bitfinex-derivatives/quotes_SOLF0:USTF0_20240910
["timestamp","ask_amount","ask_price","bid_price","bid_amount"]
[1725955164304,12.7939,134.99,134.95,3.7047]
[1725955165011,3.704,134.98,134.95,3.7047]
[1725955165204,9.09,134.99,134.95,3.7047]
[1725955165605,12.7939,134.99,134.96,3.7045]
[1725955165902,4.1176,135.02,134.93,9.09]
[1725955166103,12.7937,135.0,134.96,3.7044]
[1725955166605,9.09,135.0,134.96,3.7044]
[1725955167105,12.7939,134.99,134.96,3.7044]
[1725955169517,12.7939,134.99,134.95,3.7047]
[1725955170011,12.7939,134.99,134.96,3.7045]
[1725955170212,12.7936,135.0,134.96,3.7045]
[1725955170617,3.7032,135.01,134.97,3.7042]
[1725955171116,12.7932,135.01,134.97,3.7041]
[1725955172109,12.7932,135.01,134.95,9.09]
[1725955172514,3.7032,135.01,134.97,3.7041]
[1725955173014,9.09,135.01,134.97,3.7041]
[1725955174110,3.7035,135.0,134.97,3.7041]
[1725955174515,3.7035,135.0,134.95,9.09]
[1725955175110,3.7035,135.0,134.97,3.7042]
[1725955176409,3.7035,135.0,134.96,3.7044]
[1725955178616,9.09,135.0,134.97,3.7041]
[1725955179112,6.4913,135.02,134.98,3.7039]
[1725955179415,6.4913,135.02,134.96,9.09]
[1725955179614,2.7882,135.02,134.96,9.09]
[1725955180106,1.3803,135.02,134.96,9.09]
[1725955180718,5.0832,135.02,134.99,3.7036]
[1725955181310,3.7032,135.01,134.96,9.09]
[1725955181613,9.09,135.01,134.95,9.09]
[1725955182013,3.7035,135.0,134.95,9.09]
[1725955182612,3.7035,135.0,134.97,3.7042]
[1725955186415,3.7035,135.0,134.96,3.7044]
[1725955189114,3.7033,135.01,134.96,12.7944]
[1725955190116,3.7033,135.01,134.97,3.7043]
[1725955190627,5.0834,135.02,134.98,9.09]
[1725955190914,5.0834,135.02,134.98,12.7939]
[1725955191121,5.0834,135.02,134.98,9.09]
[1725955191322,1.3803,135.02,134.99,3.7037]
[1725955191518,12.7928,135.03,134.99,3.7037]
[1725955191914,12.7928,135.03,135.0,3.7035]
[1725955192420,9.09,135.03,135.01,3.7032]
[1725955192623,9.09,135.03,134.99,3.79214523]
[1725955193027,12.7928,135.03,135.0,3.7033]
[1725955194629,1.2831,135.06,135.0,9.09]
[1725955195015,10.3731,135.06,135.0,9.09]
[1725955195227,14.0751,135.06,135.03,3.7026]
[1725955195821,14.0751,135.06,135.02,3.7028]
[1725955197422,3.7022,135.05,135.01,3.7031]
[1725955197619,10.3731,135.06,135.01,3.7031]
[1725955197825,3.7024,135.04,135.0,3.7033]
[1725955198228,9.09,135.03,134.99,3.77518557]
[1725955198532,12.7928,135.03,134.99,3.7037]
[1725955198734,12.7928,135.03,134.99,7.47990564]
[1725955198935,12.7928,135.03,134.99,3.7037]
[1725955199431,12.7928,135.03,134.99,7.44953302]
[1725955200524,3.7028,135.03,134.99,7.44953302]
[1725955203030,3.703,135.02,134.99,3.74583302]
[1725955203332,3.703,135.02,134.98,3.7039]
[1725955203540,3.65516201,135.05,134.94,2.731]
[1725955203734,1.2831,135.06,134.94,2.731]
[1725955204736,3.7028,135.03,134.94,2.731]
[1725955204931,25.9428,135.03,134.94,2.731]
[1725955205533,3.7029,135.02,134.98,3.7039]
[1725955205735,22.24,135.03,134.94,2.731]
[1725955205930,1.3382,135.01,134.94,6.436]
[1725955206430,3.7039,134.99,134.94,6.436]
[1725955206830,3.7039,134.99,134.95,3.7048]
[1725955207034,3.7039,134.99,134.94,2.731]
[1725955207230,3.7035,135.0,134.94,2.731]
[1725955207626,1.3382,135.01,134.94,1.3188]
[1725955207833,3.7043,134.97,134.93,3.7053]
[1725955209333,3.7041,134.98,134.93,3.7053]
[1725955210034,3.7041,134.98,134.94,3.7051]
[1725955210340,3.7039,134.99,134.95,3.7048]
[1725955211036,3.7039,134.99,134.95,7.43487978]
[1725955211738,3.7036,135.0,134.96,3.7045]
[1725955212142,22.24,135.02,134.89,7.413]
[1725955212441,22.24,135.02,134.9,1.3949]
[1725955212850,22.24,135.02,135.0,9.1]
[1725955213143,3.62262739,135.05,134.91,1.3518]
[1725955213144,31.34,135.08,135.01,9.1]
[1725955213332,22.24,135.06,135.01,12.81859349]
[1725955213529,3.7023,135.05,135.01,12.81859349]
[1725955214241,22.24,135.06,135.0,12.8033]
[1725955214242,3.7024,135.04,135.0,12.8033]
[1725955214540,22.24,135.03,134.97,6.06516293]
[1725955214741,3.7029,135.02,134.97,9.1]
[1725955215243,3.7029,135.02,134.97,12.8042]
[1725955215432,3.7032,135.01,134.97,12.8042]
[1725955215737,25.9432,135.01,134.97,9.1]
[1725955215941,22.24,135.01,134.97,9.1]
[1725955216236,22.24,135.01,134.97,12.8043]
[1725955216448,22.24,135.01,134.96,6.49697313]
[1725955216643,22.24,135.0,134.93,15.77967417]
[1725955216835,22.24,135.0,134.95,12.8048]
[1725955217440,3.7039,134.99,134.95,9.1]
[1725955219245,3.7042,134.98,134.93,3.7053]
[1725955219431,22.24,134.99,134.93,12.8053]
[1725955219843,22.24,134.99,134.92,1.3452]
[1725955219844,22.24,134.99,134.95,9.1]
[1725955220345,22.24,134.98,134.95,9.1]
[1725955221140,25.944,134.98,134.95,9.1]
[1725955221445,3.704,134.98,134.95,9.1]
[1725955221945,3.7039,134.99,134.95,9.1]
[1725955222135,22.24,135.0,134.96,3.64428752]
[1725955222535,22.24,135.0,134.95,12.8048]
[1725955222536,3.7037,134.99,134.95,9.1]
[1725955222737,22.24,134.99,134.95,9.1]
[1725955222938,9.1,135.0,134.95,9.1]
[1725955223647,2.6574,135.04,134.96,3.77704591]
[1725955223849,9.1,135.01,134.96,3.77704591]
[1725955224141,3.704,134.99,134.95,12.8046]
[1725955225237,31.34,135.01,134.95,9.1]
[1725955225747,3.7039,134.99,134.95,9.1]
[1725955226245,3.7039,134.99,134.95,12.8048]
[1725955226447,3.7042,134.98,134.95,9.1]
[1725955226641,9.1,135.0,134.94,12.805]
[1725955227145,3.7042,134.98,134.94,12.805]
[1725955227348,9.1,135.0,134.94,12.805]
[1725955227745,3.7044,134.97,134.94,9.1]
[1725955231651,3.7046,134.96,134.91,6.06671932]
[1725955231951,3.7046,134.96,134.92,9.1]
[1725955234852,3.7048,134.95,134.92,9.1]
[1725955236754,3.7048,134.95,134.91,9.1]
[1725955237763,3.7052,134.94,134.91,9.1]
[1725955238354,3.7054,134.93,134.9,9.1]
[1725955238662,9.1,134.96,134.9,12.8061]
[1725955239158,9.1,134.93,134.85,9.69892513]
[1725955239350,1.3933,134.92,134.86,12.88010975]
[1725955239551,1.3933,134.92,134.87,9.1]
[1725955239756,3.7061,134.91,134.87,12.8069]
[1725955240158,3.7061,134.91,134.87,16.60583777]
[1725955240657,1.3933,134.92,134.87,16.60583777]
[1725955240860,9.1,134.94,134.89,9.1]
[1725955241261,3.7059,134.92,134.89,9.1]
[1725955242059,3.7055,134.93,134.89,9.1]
[1725955242260,3.7055,134.93,134.89,12.8065]
[1725955242458,1.3933,134.98,134.91,9.1]
[1725955242652,3.705,134.95,134.91,9.1]
[1725955242963,9.1,134.97,134.91,9.1]
[1725955243960,3.7051,134.95,134.91,12.8059]
[1725955244260,1.3933,134.98,134.91,9.1]
[1725955244458,10.4933,134.98,134.91,9.1]
[1725955244764,10.4933,134.98,134.88,2.7616]
[1725955244765,1.3933,134.98,134.93,9.1]
[1725955245551,1.3933,134.98,134.93,12.8083857]
[1725955246157,3.7046,134.96,134.93,9.1]
[1725955247651,3.7043,134.97,134.93,12.8054]
[1725955247856,1.3933,134.98,134.93,12.8054]
[1725955248251,5.0975,134.98,134.93,12.8054]
[1725955248758,5.0975,134.98,134.93,9.1]
[1725955248958,3.7043,134.97,134.93,9.1]
[1725955249159,1.3933,134.98,134.93,9.1]
[1725955249357,3.7044,134.97,134.93,9.1]
[1725955249753,10.4933,134.98,134.93,9.1]
[1725955249960,5.0974,134.98,134.94,3.7051]
[1725955250859,5.0974,134.98,134.94,12.8051]
[1725955251065,3.7038,134.99,134.95,12.8048]
[1725955252264,3.7038,134.99,134.94,3.7051]
[1725955252265,9.1,134.99,134.94,3.7051]
[1725955252768,3.7045,134.97,134.93,5.1141]
[1725955252964,9.1,134.99,134.93,5.1141]
[1725955253168,10.4138,134.99,134.93,5.1141]
[1725955253570,10.4138,134.99,134.92,12.8055]
[1725955253770,10.4138,134.99,134.92,9.1]
[1725955254671,3.7043,134.97,134.93,3.7054]
[1725955255669,3.7046,134.96,134.93,3.7054]
[1725955256969,3.7046,134.96,134.92,12.8055]
[1725955260579,3.7046,134.96,134.91,3.68866]
[1725955260580,3.7043,134.97,134.94,9.1]
[1725955261983,3.7043,134.97,134.94,12.81756742]
[1725955262280,3.7043,134.97,134.94,16.52266742]
[1725955264076,3.7046,134.96,134.92,9.1]
[1725955264474,3.7046,134.96,134.92,16.56225185]
[1725955266073,3.7044,134.97,134.93,3.7053]
[1725955266272,3.7044,134.97,134.94,9.1]
[1725955267676,3.7041,134.98,134.95,9.1]
[1725955268873,3.7044,134.97,134.95,9.1]
[1725955269383,9.1,134.99,134.94,9.1]
[1725955269579,3.7046,134.96,134.92,12.85685185]
[1725955269882,9.1,134.99,134.92,12.85685185]
[1725955270379,3.705,134.95,134.92,16.56235185]
[1725955271785,3.705,134.95,134.92,12.85685185]
[1725955271980,5.04093428,135.0,134.92,12.85685185]
[1725955271981,9.1,134.99,134.92,12.85685185]
[1725955272178,14.14093428,135.0,134.94,3.7051]
[1725955272376,10.3826,135.0,134.93,9.1]
[1725955272684,3.7042,134.98,134.93,9.1]
[1725955272885,3.7042,134.98,134.93,12.73205837]
[1725955273184,3.7042,134.98,134.94,3.705]
[1725955273587,3.7042,134.98,134.95,9.1]
[1725955275585,3.7042,134.98,134.95,12.8047]
[1725955276289,3.7044,134.97,134.95,9.1]
[1725955280889,3.7046,134.96,134.93,12.8053]
[1725955281094,9.1,134.98,134.93,3.7053]
[1725955281598,3.7048,134.96,134.93,3.7053]
[1725955281793,4.9720967,135.0,134.95,9.1]
[1725955281992,10.3826,135.0,134.95,9.1]
[1725955282487,14.03494043,135.0,134.95,9.1]
[1725955282797,3.7042,134.98,134.95,9.1]
[1725955283292,3.7042,134.98,134.95,12.8047]
[1725955283492,1.3003,135.01,134.97,9.1]
[1725955283689,152.21503556,135.02,134.97,12.8041]
[1725955284795,3.7036,135.0,134.97,12.8041]
[1725955285099,3.7036,135.0,134.97,3.7041]
[1725955288299,3.7036,135.0,134.96,12.71527965]
[1725955288300,3.7036,135.0,134.96,12.8045]
[1725955288499,3.7036,135.0,134.96,16.5026174]
[1725955289204,152.21503556,135.02,134.97,9.1]
[1725955289897,152.21503556,135.02,134.98,9.1]
[1725955290499,1.31,135.04,135.0,9.1]
[1725955290706,1.3905,135.05,135.0,9.1]
[1725955291106,1.3905,135.05,135.0,12.8033]
[1725955291499,3.7029,135.03,135.0,3.7033]
[1725955293602,9.1,135.04,134.99,3.7037]
[1725955293801,9.1,135.04,134.97,12.75189357]
[1725955293802,9.1,135.03,134.97,12.75189357]
[1725955294011,3.7034,135.01,134.98,3.7039]
[1725955294208,3.7034,135.01,134.94,1.3101]
[1725955294209,9.1,135.01,134.95,9.1]
[1725955294596,3.7036,135.0,134.97,3.7043]
[1725955295405,3.7038,134.99,134.96,12.8045]
[1725955296005,3.7038,134.99,134.96,9.1]
[1725955296296,3.7041,134.98,134.96,9.1]
[1725955296500,3.62744423,135.0,134.95,9.1]
[1725955296697,12.72744423,135.0,134.94,5.0151]
[1725955296901,9.1,135.0,134.94,5.0151]
[1725955297103,3.7045,134.97,134.93,12.8053]
[1725955297302,12.79784406,135.0,134.93,9.1]
[1725955298309,1.3086,135.04,134.96,9.1]
[1725955298605,9.1,135.03,134.96,9.1]
[1725955298905,9.1,135.03,134.97,9.1]
[1725955299809,3.7033,135.01,134.98,3.7038]
[1725955300901,3.7033,135.01,134.97,12.8042]
[1725955301508,3.7035,135.0,134.97,12.8042]
[1725955301905,9.1,135.03,134.98,3.704]
[1725955302305,3.7033,135.01,134.98,3.704]
[1725955304214,3.703,135.02,134.98,3.704]
[1725955304810,3.703,135.02,134.99,3.7037]
[1725955306215,3.7034,135.01,134.92,5.02520613]
[1725955306508,3.7034,135.01,134.96,9.1]
[1725955306907,3.7034,135.01,134.97,3.7041]
[1725955307708,3.7036,135.0,134.97,3.7043]
[1725955308019,3.7036,135.0,134.97,12.8043]
[1725955308224,9.1,135.03,134.97,12.8043]
[1725955308521,3.7033,135.01,134.98,3.7039]
[1725955308812,3.7033,135.01,134.92,5.02520613]
[1725955308813,1.3086,135.04,134.99,9.1]
[1725955309813,3.703,135.02,134.99,12.8037]
[1725955310217,1.3086,135.04,134.99,12.8037]
[1725955310419,3.7028,135.03,134.99,12.8037]
[1725955310932,3.7028,135.03,135.0,3.7034]
[1725955311116,1.3086,135.04,134.99,9.1]
[1725955311313,10.4905,135.05,134.99,9.1]
[1725955311517,10.4905,135.05,135.01,3.703]
[1725955312009,1.3338,135.09,135.02,12.8027]
[1725955312212,9.1,135.07,135.01,9.1]
[1725955312412,12.8124861,135.07,135.01,9.1]
[1725955313018,3.7021,135.05,135.01,12.803]
[1725955313614,3.7018,135.06,135.02,3.7029]
[1725955314619,1.3338,135.09,135.04,9.1]
[1725955315120,1.3338,135.09,135.05,3.7021]
[1725955316220,3.7013,135.08,135.05,3.7021]
[1725955316826,5.0349,135.09,135.06,3.7018]
[1725955317023,5.0349,135.09,135.04,9.1]
[1725955317419,5.0349,135.09,135.05,3.702]
[1725955318220,5.0349,135.09,135.06,3.7018]
[1725955318720,3.7011,135.09,135.06,3.7018]
[1725955319026,3.7011,135.09,135.05,9.1]
[1725955319027,3.7008,135.1,135.07,12.8015]
[1725955319228,542.86571739,135.13,135.07,9.1]
[1725955319426,3.71296296,135.12,135.07,9.1]
[1725955320315,3.7009,135.1,135.07,9.1]
[1725955320521,9.1,135.11,135.06,3.7016]
[1725955321026,3.7012,135.09,135.06,3.7016]
[1725955321327,9.1,135.11,135.07,3.7014]
[1725955321629,3.7008,135.1,135.07,3.7014]
[1725955321824,542.86571739,135.13,135.08,3.7013]
[1725955322018,4.91295071,135.13,135.09,9.1]
[1725955322224,7.33845071,135.13,135.09,9.1]
[1725955322529,7.33845071,135.13,135.1,3.7006]
[1725955323527,3.7,135.13,135.1,3.7006]
[1725955323928,3.6997,135.14,135.11,3.7003]
[1725955324337,152.1918123,135.15,135.09,9.1]
[1725955324338,3.6999,135.13,135.1,3.7006]
[1725955324726,152.1918123,135.15,135.11,9.1]
[1725955324926,152.1918123,135.15,135.11,12.8003]
[1725955324927,3.6998,135.14,135.11,12.8003]
[1725955325832,3.6999,135.13,135.11,9.1]
[1725955326033,161.2918123,135.15,135.1,3.7006]
[1725955326336,3.7004,135.12,135.09,9.1]
[1725955326634,3.7004,135.12,135.09,12.8009]
[1725955327036,3.70316896,135.14,135.09,3.7009]
[1725955327736,3.7003,135.12,135.09,3.7009]
[1725955328228,3.6999,135.14,135.09,9.1]
[1725955328730,152.1918123,135.15,135.09,9.1]
[1725955328930,152.1918123,135.15,135.1,3.7005]
[1725955330035,3.7001,135.13,135.1,3.7005]
[1725955330432,3.61998297,135.14,135.09,12.8009]
[1725955330631,3.7003,135.12,135.09,12.8009]
[1725955332539,3.7003,135.12,135.1,3.7007]
[1725955332838,3.7,135.13,135.1,3.7007]
[1725955333534,3.7002,135.12,135.1,3.7007]
[1725955333926,3.7002,135.12,135.09,12.8009]
[1725955334132,183.5318123,135.15,135.02,1.2903]
[1725955334133,3.63024555,135.14,135.02,1.2903]
[1725955334435,9.1,135.13,135.07,9.1]
[1725955334640,3.7009,135.1,135.07,12.8014]
[1725955335734,3.7009,135.1,135.07,3.7014]
[1725955336041,25.91207463,135.13,135.06,9.1]
[1725955336042,9.1,135.11,135.06,3.7017]
[1725955336738,31.34,135.11,135.05,12.802]
[1725955336937,9.1,135.11,135.05,9.1]
[1725955337438,31.34,135.11,135.05,9.1]
[1725955337738,31.34,135.11,135.05,12.8021]
[1725955337739,3.7014,135.08,135.05,12.8021]
[1725955338540,31.34,135.11,135.05,12.8021]
[1725955338541,3.7011,135.09,135.06,3.7018]
[1725955340239,3.7013,135.08,135.05,12.802]
[1725955340934,3.7007,135.11,135.07,3.7015]
[1725955341141,3.7007,135.11,135.07,12.8015]
[1725955343436,3.7007,135.11,135.08,3.7011]
[1725955346149,3.7007,135.11,135.07,9.1]
[1725955346150,3.7007,135.11,135.09,3.701]
[1725955346440,3.7003,135.12,135.09,3.701]
[1725955346643,5.01147463,135.13,135.09,3.701]
[1725955346938,3.7002,135.12,135.09,3.701]
[1725955348435,3.7005,135.11,135.09,3.701]
[1725955350842,3.7005,135.11,135.08,12.8012]
[1725955351342,5.01147463,135.13,135.07,9.1]
[1725955351343,9.1,135.12,135.07,9.1]
[1725955351741,9.1,135.12,135.07,12.8014]
[1725955352046,3.7011,135.09,135.07,12.8014]
[1725955352247,3.7011,135.09,135.06,12.8017]
[1725955352946,3.7011,135.09,135.07,3.7015]
[1725955354043,31.34,135.12,135.06,9.1]
[1725955354442,3.7011,135.09,135.06,12.8018]
[1725955354842,3.7011,135.09,135.06,9.1]
[1725955355042,9.1,135.12,135.08,9.1]
[1725955355242,3.7009,135.1,135.08,9.1]
[1725955355446,5.01147463,135.13,135.08,9.1]
[1725955355648,3.7005,135.11,135.08,12.8011]
[1725955357554,3.7007,135.1,135.08,12.8011]
[1725955360259,3.7006,135.11,135.08,12.8011]
[1725955360645,3.7006,135.11,135.09,3.701]
[1725955362554,3.7009,135.1,135.08,9.1]
[1725955362856,27.25147463,135.13,135.08,9.1]
[1725955363055,9.1,135.11,135.05,9.1]
[1725955363251,5.01147463,135.13,135.03,1.3474]
[1725955363252,31.34,135.09,135.03,1.3474]
[1725955363458,31.34,135.07,135.02,10.3903]
[1725955363656,31.34,135.06,135.0,9.1]
[1725955363855,35.0349285,135.06,135.0,9.1]
[1725955364268,12.7949285,135.06,135.0,9.1]
[1725955364454,1.307,135.08,135.03,9.1]
[1725955364951,1.307,135.08,135.05,9.1]
[1725955365155,9.1,135.11,135.06,9.1]
[1725955365863,3.7007,135.1,135.06,9.1]
[1725955366365,3.7012,135.09,135.06,9.1]
[1725955367761,3.7009,135.1,135.06,12.8016]
[1725955367960,31.34,135.1,135.01,2.6266]
[1725955368259,31.34,135.1,135.03,9.1]
[1725955368260,9.1,135.09,135.03,9.1]
[1725955368764,3.702,135.06,135.03,9.1]
[1725955369163,3.702,135.06,135.03,12.8026]
[1725955369370,3.7017,135.07,135.03,12.8026]
[1725955369555,9.1,135.1,135.03,12.8026]
[1725955370161,3.7018,135.06,135.03,12.8026]
[1725955370859,9.1,135.09,135.02,3.7028]
[1725955371060,9.1,135.09,135.03,9.1]
[1725955371460,3.7022,135.05,135.03,9.1]
[1725955371655,31.34,135.09,135.03,9.1]
[1725955371861,9.1,135.07,135.02,9.1]
[1725955372062,3.7023,135.05,135.02,9.1]
[1725955372365,3.7023,135.05,135.02,12.8028]
[1725955372772,3.7024,135.04,135.02,9.1]
[1725955374770,9.1,135.07,135.0,1.3019]
[1725955374771,12.75397436,135.06,135.0,1.3019]
[1725955374971,9.1,135.06,135.01,9.1]
[1725955375167,9.1,135.05,135.0,1.3019]
[1725955375370,9.1,135.05,134.99,9.1]
[1725955376074,12.78563569,135.05,134.96,1.3581]
[1725955376269,12.78563569,135.05,134.95,1.3963]
[1725955376270,31.33,135.04,134.95,1.3963]
[1725955376468,9.1,135.02,134.97,9.1]
[1725955376675,3.7037,135.0,134.97,9.1]
[1725955376979,9.1,135.02,134.97,9.1]
[1725955377172,3.7039,134.99,134.97,9.1]
[1725955377871,3.704,134.98,134.95,1.3963]
[1725955378076,3.704,134.98,134.95,10.4963]
[1725955378677,3.7038,134.99,134.95,10.4963]
[1725955378878,9.1,135.01,134.95,10.4963]
[1725955379176,3.7042,134.98,134.95,10.4963]
[1725955379379,3.7042,134.98,134.96,9.1]
[1725955380076,9.1,135.0,134.93,10.4082]
[1725955380373,10.4461,135.0,134.95,9.1]
[1725955381073,32.6761,135.0,134.93,9.1]
[1725955381277,3.7049,134.95,134.93,9.1]
[1725955381466,3.7049,134.95,134.92,9.1]
[1725955382167,3.7052,134.94,134.92,9.1]
[1725955382971,3.7047,134.96,134.93,9.1]
[1725955383377,9.1,134.99,134.93,9.1]
[1725955383576,3.7046,134.96,134.93,9.1]
[1725955383879,1.3461,135.0,134.95,9.1]
[1725955384077,3.704,134.98,134.95,12.8047]
[1725955384579,1.3461,135.0,134.96,12.8043]
[1725955384580,3.7037,135.0,134.96,12.8043]
[1725955384769,9.1,135.02,134.96,12.8043]
[1725955386379,9.1,135.02,134.97,3.7042]
[1725955386572,9.1,135.02,134.96,9.1]
[1725955386772,10.4657,135.03,134.98,9.1]
[1725955388076,3.703,135.02,134.98,12.804]
[1725955388278,1.3236,135.04,134.99,9.1]
[1725955388479,225.0,135.1,134.94,3.9597]
[1725955388480,152.18181001,135.05,135.0,9.1]
[1725955388976,155.88411001,135.05,135.01,3.703]
[1725955390573,3.7024,135.04,135.0,12.8034]
[1725955391177,9.1,135.08,135.03,9.1]
[1725955391373,2.7492,135.09,135.03,9.1]
[1725955391574,3.7015,135.08,135.04,12.8022]
[1725955392280,3.7016,135.07,135.04,12.8022]
[1725955392476,3.7016,135.07,135.03,12.8025]
[1725955396384,3.7018,135.06,135.03,12.8025]
[1725955396582,3.7018,135.06,135.03,9.1]
[1725955398985,3.7018,135.06,135.02,12.8028]
[1725955401891,3.7021,135.05,135.02,12.8028]
[1725955402695,3.702,135.06,135.02,12.8028]
[1725955402895,9.1,135.08,135.02,12.8028]
[1725955403394,3.702,135.06,135.02,12.8028]
[1725955404593,3.7017,135.07,135.03,9.1]
[1725955404800,1.368,135.09,135.05,9.1]
[1725955404988,3.7009,135.1,135.06,12.8017]
[1725955405493,1.2859,135.11,135.06,12.8017]
[1725955405887,3.7008,135.1,135.07,3.7015]
[1725955406289,3.7008,135.1,135.06,9.1]
[1725955406495,3.7011,135.09,135.06,12.8018]
[1725955406889,1.2859,135.11,135.06,12.8018]
[1725955407099,3.7009,135.1,135.06,12.8018]
[1725955407290,1.2859,135.11,135.06,12.8018]
[1725955407490,3.7015,135.08,135.04,9.1]
[1725955407684,9.1,135.09,135.03,9.1]
[1725955407884,9.1,135.08,135.02,2.6571]
[1725955408089,3.702,135.06,135.03,9.1]
[1725955408289,9.1,135.09,135.03,9.1]
[1725955408485,3.7018,135.06,135.03,12.8025]
[1725955411195,3.7018,135.06,135.03,9.1]
[1725955411391,3.7021,135.05,135.03,9.1]
[1725955411592,31.33,135.09,135.03,9.1]
[1725955412088,9.1,135.06,134.95,6.04496105]
[1725955412393,12.80582983,135.06,135.0,9.1]
[1725955412593,12.80582983,135.06,135.0,12.8033]
[1725955413695,12.80582983,135.06,134.96,2.6377]
[1725955413696,3.7031,135.02,134.99,12.8036]
[1725955414192,3.7031,135.02,135.0,9.1]
[1725955414501,3.7028,135.03,135.0,9.1]
[1725955414701,3.7028,135.03,135.0,12.8035]
[1725955415493,3.7028,135.03,135.0,9.1]
[1725955416100,3.7028,135.03,135.0,12.8034]
[1725955417097,3.7026,135.04,135.02,9.1]
[1725955421199,12.83740037,135.06,135.0,12.8034]
[1725955421403,9.1,135.06,135.0,12.8034]
[1725955421598,3.7029,135.03,135.0,12.8034]
[1725955421908,12.76293716,135.06,135.0,9.1]
[1725955422305,3.7028,135.03,135.0,12.8034]
[1725955423399,3.703,135.02,135.0,9.1]
[1725955423604,9.1,135.05,134.99,9.1]
[1725955424002,25.89293716,135.06,134.96,2.6377]
[1725955424003,9.1,135.02,134.96,2.6377]
[1725955424204,9.1,135.02,134.97,9.1]
[1725955424505,3.7036,135.0,134.97,9.1]
[1725955427212,3.7036,135.0,134.97,12.8043]
[1725955429899,3.7039,134.99,134.97,9.1]
[1725955430807,3.7036,135.0,134.98,9.1]
[1725955431410,14.27080755,135.04,134.98,9.1]
[1725955432910,3.7033,135.01,134.98,12.8039]
[1725955433109,36.50080755,135.04,134.98,9.1]
[1725955433608,3.7036,135.0,134.98,9.1]
[1725955438113,3.7033,135.01,134.98,12.804]
[1725955440306,3.7035,135.0,134.98,12.804]
[1725955440507,9.1,135.02,134.96,1.351]
[1725955440920,9.1,135.02,134.95,9.1]
[1725955440921,3.7042,134.98,134.95,12.8047]
[1725955441413,1.4115,135.03,134.95,9.1]
[1725955441414,31.33,135.01,134.95,9.1]
[1725955441716,9.1,135.0,134.94,9.1]
[1725955442113,3.7045,134.97,134.94,12.805]
[1725955442411,22.23,135.01,134.93,1.3254]
[1725955442412,9.1,135.01,134.95,9.1]
[1725955442615,31.33,135.01,134.93,1.3254]
[1725955442810,9.1,134.99,134.93,1.3254]
[1725955443020,9.1,134.98,134.92,9.1]
[1725955443311,9.1,134.96,134.91,9.1]
[1725955443512,3.73860186,134.97,134.91,9.1]
[1725955443820,11.9098,134.98,134.92,9.1]
[1725955444115,3.705,134.95,134.92,9.1]
[1725955446309,3.7047,134.96,134.92,9.1]
[1725955446514,11.9098,134.98,134.92,9.1]
[1725955447414,3.705,134.95,134.92,12.8055]
[1725955447813,3.75556049,134.97,134.89,2.7044]
[1725955448016,11.9098,134.98,134.91,9.1]
[1725955448622,11.9098,134.98,134.92,9.1]